[Event "FIDE WY-U16 Olympiad 2022"]
[Site "Nakhchivan"]
[Date "2022.10.05"]
[Round "4.26"]
[White "Taspinar, Yanki"]
[Black "Navaratnam, Ishaan Quan Tze"]
[Result "1/2-1/2"]
[ECO "E63"]
[WhiteElo "2325"]
[BlackElo "1862"]
[Annotator "TA"]
[PlyCount "84"]
[EventDate "2022.10.02"]
[EventType "team-tourn"]
[EventCountry "AZE"]
[SourceTitle "playchess.com"]
[Source "ChessBase"]
[SourceQuality "1"]
[WhiteTeam "Turkey"]
[BlackTeam "Malaysia"]
[WhiteTeamCountry "TUR"]
[BlackTeamCountry "MAS"]
[TimeControl "40/5400+30:1800+30"]

{[%evp 16,84,40,0,27,0,18,18,32,12,26,16,21,12,13,25,29,0,19,-5,-12,-34,-20,-28,0,-16,0,0,-4,-63,-56,-97,-24,-29,-24,-20,0,0,0,0,16,0,14,0,0,-104,-117,-112,-99,-116,-78,-100,-93,-56,-40,-143,-96,-97,-96,-95,-95,-88,-78,-85,0,-83,0,-79,0,-62,0]} 1. d4 {[%emt 0:00:14]} Nf6 {[%emt 0:00:18]} 2. c4 {[%emt 0:00:07]} g6 {[%emt 0:00:18]} 3. Nc3 {[%emt 0:00:10]} Bg7 {[%emt 0:00:06]} 4. Nf3 {[%emt 0:01:20]} O-O {[%emt 0:00:12]} 5. g3 {[%emt 0:02:38]} d6 {[%emt 0:00:14]} 6. Bg2 {[%emt 0:00:06]} Nc6 {[%emt 0:00:10]} 7. O-O {[%emt 0:03:33]} a6 {[%emt 0:02:38]} 8. b3 {[%emt 0:02:50] 8.Bf4 is a critical line.} Rb8 {[%emt 0:01:06]} 9. a4 {[%emt 0:15:56]} Bg4 {[%emt 0:16:16] [#] E63: King's Indian: Fianchetto: Panno Variation with 7...a6.} 10. Be3 $146 {[%emt 0:11:28]} ({Predecessor:} 10. Bb2 Qc8 11. Re1 Re8 12. d5 Nb4 13. Qd2 a5 14. Nd4 Bh3 15. Bh1 Nd7 16. Na2 Nxa2 17. Rxa2 {½-½ (53) Rausis,I (2508)-Tkachiev,V (2634) Enghien les Bains 1999}) 10... Qc8 {[%emt 0:06:38]} 11. Qd2 {[%emt 0:22:51]} Rd8 {[%emt 0:13:25] The position is equal.} 12. Rfc1 {[%emt 0:15:44]} Bh3 {[%emt 0:03:54]} 13. d5 {[%emt 0:02:58]} Nb4 {[%emt 0:06:43]} 14. Bh1 {[%emt 0:08:59]} c5 {[%emt 0:12:52]} 15. Bh6 {[%emt 0:05:58]} Bh8 {[%emt 0:00:51]} 16. Bg5 {[%emt 0:01:51]} Qg4 {[%emt 0:04:31]} 17. Rab1 {[%emt 0:01:14]} Qh5 {[%emt 0:02:07]} 18. Re1 {[%emt 0:00:41]} Bg7 {[%emt 0:01:29]} 19. Bg2 {[%emt 0:00:30]} Bf5 {[%emt 0:03:01]} 20. Rbc1 {[%emt 0:00:26]} h6 {[%emt 0:01:02]} 21. Bxf6 {[%emt 0:00:36]} Bxf6 {[%emt 0:00:10]} 22. Nd1 (22. h4 $11) 22... b5 {[%emt 0:05:50]} 23. a5 {[%emt 0:00:46]} Bh3 {[%emt 0:01:16]} (23... Bd7 $17) 24. Bxh3 $11 {[%emt 0:00:46]} Qxh3 {[%emt 0:00:01]} 25. e4 {[%emt 0:00:00]} Qh5 {[%emt 0:01:25]} 26. Kg2 {[%emt 0:00:02]} Qg4 {[%emt 0:03:49]} 27. h3 {[%emt 0:01:11]} Qd7 {[%emt 0:00:15]} 28. Ne3 {[%emt 0:00:50][%cal Oe4e5]} Kh7 {[%emt 0:01:25]} 29. e5 Bg7 {[%emt 0:01:33]} 30. e6 {[%emt 0:01:13]} (30. Ng4 $11 {remains equal.}) 30... fxe6 $17 {[%emt 0:00:41]} 31. dxe6 {[%emt 0:00:01]} Qc6 {[%emt 0:02:50]} (31... Qxe6 32. Nd5 Be5 33. Nxb4 cxb4 34. c5 $16) 32. Nd5 {[%emt 0:00:00]} bxc4 {[%emt 0:01:50]} 33. bxc4 {[%emt 0:01:18] [#]} Nxd5 {[%emt 0:00:24]} 34. cxd5 {[%emt 0:00:01]} Qa4 {[%emt 0:00:58]} 35. h4 {[%emt 0:01:07] [#]} (35. Rb1 $1 $15) 35... Rb2 {[%emt 0:01:39]} ({Better is} 35... Rf8 $1 {And now ...Rb2 would win.} 36. Qc2 Qxc2 37. Rxc2 Rf5) 36. Qd3 {[%emt 0:00:01]} Qa2 {[%emt 0:01:07]} 37. Rf1 {[%emt 0:00:38]} Rb3 {[%emt 0:01:54]} ({Reject} 37... Bd4 $6 38. h5 (38. Nxd4 Qxd5+ 39. Kg1 Qxd4 $17) 38... Rg8 39. Nxd4 Qxd5+ 40. Qf3 Qxd4 41. Rb1 (41. Qf7+ Kh8 $11) 41... Rxb1 42. Rxb1 $11) 38. Qe4 {[%emt 0:00:39]} Rb4 {[%emt 0:02:06]} 39. Qd3 {[%emt 0:00:13]} Rb3 {[%emt 0:00:18]} 40. Qe4 {[%emt 0:00:38]} Rb4 {[%emt 0:01:00]} 41. Qd3 {[%emt 0:30:54]} Rb3 {[%emt 0:30:17]} 42. Qe4 {[%emt 0:00:00]} Rb4 {[%emt 0:00:00] Weighted Error Value: White=0.18 (very precise) /Black=0.23 (precise)} (42... Rf8 $15 43. Rc2 Qxa5) 1/2-1/2

[Event "FIDE WY-U16 Olympiad 2022"]
[Site "Nakhchivan"]
[Date "2022.10.05"]
[Round "4.26"]
[White "Pal, Rohan"]
[Black "Boshoma, Chisomo"]
[Result "1/2-1/2"]
[ECO "B38"]
[WhiteElo "1871"]
[BlackElo "1466"]
[Annotator "NA RC COMBH"]
[PlyCount "55"]
[EventDate "2022.10.02"]
[EventType "team-tourn"]
[EventCountry "AZE"]
[SourceTitle "playchess.com"]
[Source "ChessBase"]
[SourceQuality "1"]
[WhiteTeam "England"]
[BlackTeam "South Africa"]
[WhiteTeamCountry "ENG"]
[BlackTeamCountry "RSA"]
[TimeControl "40/5400+30:1800+30"]

1. e4 {[%emt 0:00:05]} c5 {[%emt 0:00:05]} 2. Nf3 {[%emt 0:00:03]} g6 {[%emt 0:00:08]} 3. d4 {[%emt 0:00:17]} cxd4 {[%emt 0:00:05]} 4. Nxd4 {[%emt 0:00:05]} Bg7 {[%emt 0:00:06]} 5. c4 {[%emt 0:01:46]} Nc6 {[%emt 0:00:16]} 6. Be3 {[%emt 0:00:27]} Nf6 {[%emt 0:00:09]} 7. Nc3 {[%emt 0:00:35]} d6 {[%emt 0:00:11]} 8. Be2 {[%emt 0:00:44]} O-O {[%emt 0:00:12]} 9. O-O {[%emt 0:00:44]} Bd7 {[%emt 0:00:13]} 10. f3 {[%emt 0:00:48]} Nxd4 {[%emt 0:00:11]} 11. Bxd4 {[%emt 0:00:07]} a5 {[%emt 0:00:07]} 12. Qd2 {[%emt 0:02:00]} Bc6 {[%emt 0:02:48]} 13. Rfd1 {[%emt 0:05:38]} Nd7 {[%emt 0:00:36]} 14. Be3 {[%emt 0:03:32]} a4 {[%emt 0:03:47]} 15. Rac1 {[%emt 0:12:02]} Qa5 {[%emt 0:04:19]} 16. Nd5 {[%emt 0:12:00]} Bxd5 {[%emt 0:00:43]} 17. cxd5 {[%emt 0:00:29]} Nc5 {[%emt 0:07:06]} 18. Rc4 {[%emt 0:09:23]} Rfc8 {[%emt 0:15:12]} 19. Rb4 {[%emt 0:22:59]} a3 {[%emt 0:13:23]} 20. Bd4 {[%emt 0:09:09]} Bxd4+ {[%emt 0:01:54]} 21. Qxd4 {[%emt 0:02:23]} axb2 {[%emt 0:03:12]} 22. Rxb2 {[%emt 0:01:48]} Qa7 {[%emt 0:06:43]} 23. Rdb1 {[%emt 0:02:29]} Qa4 {[%emt 0:22:40]} 24. Qd2 {[%emt 0:04:37]} Qa5 {[%emt 0:01:22]} 25. Qd4 {[%emt 0:00:48]} Qa4 {[%emt 0:02:53]} 26. Qd2 {[%emt 0:00:04]} Qa5 {[%emt 0:03:36]} 27. Qd4 {[%emt 0:00:11]} Qa4 {[%emt 0:01:35]} 28. Qd2 1/2-1/2

[Event "FIDE WY-U16 Olympiad 2022"]
[Site "Nakhchivan"]
[Date "2022.10.05"]
[Round "4.27"]
[White "Emran, Muhammad Emir Rasyid"]
[Black "Camlar, Arda"]
[Result "0-1"]
[ECO "B40"]
[WhiteElo "1634"]
[BlackElo "2322"]
[Annotator "TA"]
[PlyCount "110"]
[EventDate "2022.10.02"]
[EventType "team-tourn"]
[EventCountry "AZE"]
[SourceTitle "playchess.com"]
[Source "ChessBase"]
[SourceQuality "1"]
[WhiteTeam "Malaysia"]
[BlackTeam "Turkey"]
[WhiteTeamCountry "MAS"]
[BlackTeamCountry "TUR"]
[TimeControl "40/5400+30:1800+30"]

{[%evp 12,109,37,16,20,8,29,25,30,20,43,0,-12,-9,-6,-9,-13,0,-10,-13,-19,-22,-30,-25,-27,-13,33,39,58,-96,-97,-101,-99,-93,-93,-87,-86,-115,-81,-83,-83,-125,-106,-121,-115,-123,-119,-118,-122,-126,-128,-143,-135,-152,-152,-495,-496,-468,-466,-429,-370,-484,-466,-500,-466,-1035,-883,-1513,-1331,-1314,-1315,-5385,-3343,-12837,-12839,-12839,-12839,-12840,-12839,-12839,-12838,-12843,-12843,-29984,-29985,-29985,-29986,-29986,-29987,-29992,-29993,-29995,-29996,-29996,-29997,-29997,-29998,-29998,-29999,-29999]} 1. e4 {[%emt 0:00:02]} c5 {[%emt 0:00:19]} 2. Nf3 {[%emt 0:00:06]} e6 {[%emt 0:00:21]} 3. c3 {[%emt 0:00:29]} Nf6 {[%emt 0:00:25]} 4. e5 {[%emt 0:00:04]} Nd5 {[%emt 0:00:20]} 5. d4 {[%emt 0:00:10]} cxd4 {[%emt 0:00:38]} 6. cxd4 {[%emt 0:00:07]} b6 {[%emt 0:00:18]} 7. Bc4 {[%emt 0:00:25]} Ba6 {[%emt 0:01:02] B22: Sicilian: 2 c3.} 8. b3 {[%emt 0:00:25]} Be7 {[%emt 0:03:25]} 9. O-O {[%emt 0:00:30]} Bb7 {[%emt 0:01:01] White has an edge.} 10. Bxd5 {[%emt 0:08:42]} Bxd5 {[%emt 0:00:32] [#]} 11. Ba3 $146 {[%emt 0:00:08]} (11. Nc3 $14) ({Predecessor:} 11. Nc3 Bb7 12. d5 O-O 13. d6 Bh4 14. Bd2 h6 15. Rc1 f5 16. Nb5 Na6 17. b4 {½-½ (80) Gottardi,G (2620)-Poulsen,A (2590) ICCF corr 1996}) 11... Bxa3 $11 {[%emt 0:01:50]} 12. Nxa3 {[%emt 0:00:03]} Nc6 {[%emt 0:00:02][%cal Bb8c6,Bc6e7,Be7f5][%mdl 32]} 13. Nb5 {[%emt 0:04:09]} O-O {[%emt 0:00:58]} 14. Ne1 {[%emt 0:14:49][%cal Bf3e1,Be1c2,Bc2e3][%mdl 32]} Ne7 {[%emt 0:08:12]} 15. Nc2 {[%emt 0:13:14]} Nf5 {[%emt 0:05:46]} 16. Ne3 {[%emt 0:02:16]} Bc6 {[%emt 0:01:34]} 17. Nd6 {[%emt 0:16:54]} Nxd6 {[%emt 0:08:14]} 18. exd6 {[%emt 0:00:02]} Qb8 {[%emt 0:02:07]} (18... Qg5 $11) 19. d5 $1 $14 {[%emt 0:01:20]} Bb5 {[%emt 0:02:22][%cal Bc6b5,Bb5d3,Bd3g6][%mdl 32]} 20. dxe6 $2 {[%emt 0:00:44] [#]} (20. Re1 $14 {is the one way to stay ahead.}) 20... dxe6 $17 {[%emt 0:00:41]} ({Don't do} 20... Bxf1 21. e7 Rc8 22. Kxf1 $16 (22. Nxf1 Rc6 $17)) 21. Re1 {[%emt 0:07:38]} Rd8 {[%emt 0:00:49]} 22. Qh5 {[%emt 0:00:10]} Bd3 {[%emt 0:06:02]} 23. Ng4 {[%emt 0:10:15]} Bg6 {[%emt 0:05:04]} 24. Qe5 {[%emt 0:00:30]} Qxd6 {[%emt 0:01:30]} 25. Qxd6 {[%emt 0:00:10]} Rxd6 {[%emt 0:00:15]} 26. Red1 {[%emt 0:01:52]} Rxd1+ {[%emt 0:05:04]} 27. Rxd1 {[%emt 0:00:01][%mdl 4096] Endgame KRB-KRN} Rc8 {[%emt 0:00:26]} 28. Ne3 {[%emt 0:01:29]} f6 {[%emt 0:01:15]} 29. Kf1 {[%emt 0:00:34]} Be8 {[%emt 0:00:21] Inhibits Rd7.} 30. Ke1 {[%emt 0:01:33]} Kf8 {[%emt 0:00:32]} 31. Nc4 {[%emt 0:01:54]} Ke7 {[%emt 0:00:55]} 32. Nd6 {[%emt 0:00:18]} Rd8 {[%emt 0:00:39]} 33. Nxe8 {[%emt 0:00:09] White does not recover from this.} (33. Nc4 $17 {was the crucial defense.}) 33... Rxd1+ $19 {[%emt 0:00:09]} ({Stronger than} 33... Kxe8 34. Rc1 $17) 34. Kxd1 {[%emt 0:00:02]} Kxe8 $17 {[%emt 0:00:18] KP-KP} 35. Kd2 {[%emt 0:01:14]} Kd7 {[%emt 0:00:12]} 36. Kd3 {[%emt 0:00:28]} e5 {[%emt 0:00:20]} 37. Kc4 {[%emt 0:00:47]} Kc6 {[%emt 0:00:11]} 38. h4 {[%emt 0:08:11]} (38. Kd3 $142 f5 39. g3) 38... g6 $19 {[%emt 0:00:41]} 39. g3 {[%emt 0:01:41]} b5+ {[%emt 0:00:18][%cal Bb6b5,Bb5b4][%mdl 32]} 40. Kb4 {[%emt 0:01:17]} Kb6 {[%emt 0:00:03]} 41. a4 {[%emt 0:34:44]} a5+ {[%emt 0:30:14]} 42. Ka3 {[%emt 0:00:27]} b4+ {[%emt 0:00:22]} 43. Kb2 {[%emt 0:00:01]} Kc5 {[%emt 0:00:09]} 44. Kc2 {[%emt 0:00:26]} Kd4 {[%emt 0:00:06]} 45. Kd2 {[%emt 0:01:07]} e4 {[%emt 0:00:20]} 46. g4 {[%emt 0:00:00]} f5 {[%emt 0:00:00] [#] ( -> ...f4)} 47. gxf5 {[%emt 0:00:00]} gxf5 {[%emt 0:00:00] Black mates.} 48. h5 {[%emt 0:00:00]} f4 {[%emt 0:00:00]} 49. h6 {[%emt 0:00:00]} f3 {[%emt 0:00:00]} 50. Kc2 {[%emt 0:00:00]} e3 {[%emt 0:00:00]} 51. Kd1 {[%emt 0:00:00]} exf2 {[%emt 0:00:00]} 52. Kc2 {[%emt 0:00:00]} f1=Q {[%emt 0:00:00]} 53. Kb2 {[%emt 0:00:00]} Qe2+ {[%emt 0:00:00]} 54. Ka1 {[%emt 0:00:00]} f2 {[%emt 0:00:00][%cal Rf2f1]} 55. Kb1 {[%emt 0:00:00]} f1=R# {[%emt 0:00:00] Weighted Error Value: White=0.73/Black=0.04 (flawless)} 0-1

[Event "FIDE WY-U16 Olympiad 2022"]
[Site "Nakhchivan"]
[Date "2022.10.05"]
[Round "4.27"]
[White "Price, Rowan Daelen"]
[Black "Subramanian, Anusha"]
[Result "0-1"]
[ECO "C10"]
[WhiteElo "1329"]
[BlackElo "1840"]
[Annotator "NA RC COMBH"]
[PlyCount "82"]
[EventDate "2022.10.02"]
[EventType "team-tourn"]
[EventCountry "AZE"]
[SourceTitle "playchess.com"]
[Source "ChessBase"]
[SourceQuality "1"]
[WhiteTeam "South Africa"]
[BlackTeam "England"]
[WhiteTeamCountry "RSA"]
[BlackTeamCountry "ENG"]
[TimeControl "40/5400+30:1800+30"]

1. e4 {[%emt 0:00:04]} e6 {[%emt 0:00:05]} 2. d4 {[%emt 0:00:21]} d5 {[%emt 0:00:06]} 3. Nc3 {[%emt 0:00:24]} dxe4 {[%emt 0:00:07]} 4. Nxe4 {[%emt 0:00:10]} Nd7 $14 {[%emt 0:00:03]} 5. Nf3 {[%emt 0:01:00]} Ngf6 {[%emt 0:00:07]} 6. Bd3 {[%emt 0:05:28]} Nxe4 {[%emt 0:01:33]} 7. Bxe4 {[%emt 0:00:20]} Nf6 {[%emt 0:00:12]} 8. Bg5 {[%emt 0:02:15]} Be7 {[%emt 0:00:49]} 9. Bxf6 {[%emt 0:03:01]} Bxf6 {[%emt 0:00:10]} 10. c3 {[%emt 0:01:13]} O-O {[%emt 0:03:34]} 11. Qd3 {[%emt 0:04:05]} h6 {[%emt 0:00:56]} 12. O-O {[%emt 0:01:50]} a5 {[%emt 0:07:04]} 13. Rad1 {[%emt 0:03:49]} a4 {[%emt 0:04:15]} 14. Rfe1 {[%emt 0:04:09]} Rb8 {[%emt 0:06:04]} 15. Re3 {[%emt 0:15:03]} b5 {[%emt 0:10:30]} 16. a3 {[%emt 0:03:15]} Bb7 {[%emt 0:07:14]} 17. Bxb7 {[%emt 0:02:12]} Rxb7 {[%emt 0:00:08]} 18. Ne5 {[%emt 0:02:10]} Qd6 {[%emt 0:10:33]} 19. Rde1 {[%emt 0:12:19]} Rd8 {[%emt 0:06:09]} 20. Qe4 {[%emt 0:10:57]} Rb6 {[%emt 0:04:55]} 21. Ng4 {[%emt 0:05:03]} Bg5 {[%emt 0:02:51]} 22. f4 {[%emt 0:07:27]} Bxf4 {[%emt 0:06:51]} 23. Rf3 {[%emt 0:03:24]} Bd2 {[%emt 0:08:52]} 24. Rxf7 {[%emt 0:03:59]} Kxf7 {[%emt 0:04:37]} 25. Rf1+ {[%emt 0:02:01]} Kg8 {[%emt 0:09:48]} 26. Qg6 {[%emt 0:01:15]} Rf8 {[%emt 0:02:08]} 27. Nf6+ {[%emt 0:01:09]} Rxf6 {[%emt 0:00:08]} 28. Rxf6 {[%emt 0:00:17]} Qe7 {[%emt 0:00:36]} 29. Rf3 {[%emt 0:00:44]} e5 {[%emt 0:01:02]} 30. Qe4 {[%emt 0:01:30]} Re6 {[%emt 0:02:08]} 31. Qe2 {[%emt 0:02:45]} e4 {[%emt 0:01:04]} 32. Rf5 {[%emt 0:00:50]} e3 {[%emt 0:00:24]} 33. Rxb5 {[%emt 0:00:43]} Qf7 {[%emt 0:00:53]} 34. h3 {[%emt 0:01:22]} Qg6 {[%emt 0:00:45]} 35. Qc4 {[%emt 0:00:35]} e2 {[%emt 0:00:36]} 36. Re5 {[%emt 0:00:22]} e1=Q+ {[%emt 0:00:09]} 37. Rxe1 {[%emt 0:00:08]} Bxe1 {[%emt 0:00:05]} 38. d5 {[%emt 0:00:06]} Re4 {[%emt 0:00:52]} 39. Qxc7 {[%emt 0:00:15]} Re2 {[%emt 0:00:27]} 40. g4 {[%emt 0:00:43]} Qe4 {[%emt 0:00:19]} 41. Qc8+ {[%emt 0:30:20]} Kh7 0-1

[Event "FIDE WY-U16 Olympiad 2022"]
[Site "Nakhchivan"]
[Date "2022.10.05"]
[Round "4.28"]
[White "Alagoz, Zumra Meryem"]
[Black "Thamil Manni, Swetha"]
[Result "1-0"]
[ECO "A06"]
[WhiteElo "1800"]
[BlackElo "1428"]
[Annotator "NA RC COMBH"]
[PlyCount "115"]
[EventDate "2022.10.02"]
[EventType "team-tourn"]
[EventCountry "AZE"]
[SourceTitle "playchess.com"]
[Source "ChessBase"]
[SourceQuality "1"]
[WhiteTeam "Turkey"]
[BlackTeam "Malaysia"]
[WhiteTeamCountry "TUR"]
[BlackTeamCountry "MAS"]
[TimeControl "40/5400+30:1800+30"]

1. Nf3 {[%emt 0:00:04]} d5 {[%emt 0:00:22]} 2. b3 {[%emt 0:00:03]} c5 {[%emt 0:01:09]} 3. Bb2 {[%emt 0:00:05]} Nc6 {[%emt 0:01:09]} 4. e3 {[%emt 0:00:05]} a6 {[%emt 0:05:57]} 5. Be2 {[%emt 0:01:23]} Bf5 {[%emt 0:03:40]} 6. O-O {[%emt 0:00:51]} e6 {[%emt 0:02:49]} 7. a3 {[%emt 0:03:11]} Nf6 {[%emt 0:03:12]} 8. d4 {[%emt 0:03:43]} Rc8 {[%emt 0:10:02]} 9. c4 {[%emt 0:03:52]} dxc4 {[%emt 0:06:40]} 10. bxc4 {[%emt 0:00:24]} Qb6 {[%emt 0:04:38]} 11. Ra2 {[%emt 0:10:34]} Rd8 {[%emt 0:16:21]} 12. Qa4 {[%emt 0:11:18]} Be7 {[%emt 0:07:30]} 13. Nc3 {[%emt 0:05:47]} O-O {[%emt 0:02:13]} 14. d5 {[%emt 0:06:54]} Na5 {[%emt 0:06:24]} 15. Nh4 {[%emt 0:04:26]} Nb3 {[%emt 0:04:27]} 16. Nxf5 {[%emt 0:01:45]} exf5 {[%emt 0:00:03]} 17. Rd1 {[%emt 0:01:57]} Na5 {[%emt 0:06:10]} 18. Bd3 {[%emt 0:07:51]} g6 {[%emt 0:01:18]} 19. Ne2 {[%emt 0:02:22]} Qc7 {[%emt 0:00:26]} 20. d6 {[%emt 0:01:58]} Bxd6 {[%emt 0:03:59]} 21. Bxf6 {[%emt 0:00:08]} Bxh2+ {[%emt 0:00:58]} 22. Kh1 {[%emt 0:00:18]} Rd6 {[%emt 0:03:41]} 23. Bc3 {[%emt 0:00:10]} b6 {[%emt 0:01:31]} 24. g3 {[%emt 0:00:07]} Qb7+ {[%emt 0:01:14]} 25. Kxh2 {[%emt 0:00:07]} Qf3 {[%emt 0:01:22]} 26. Ng1 {[%emt 0:02:30]} Qh5+ {[%emt 0:00:25]} 27. Kg2 {[%emt 0:00:09]} b5 {[%emt 0:03:09]} 28. Be2 {[%emt 0:01:00]} bxa4 {[%emt 0:01:01]} 29. Bxh5 {[%emt 0:00:06]} Nxc4 {[%emt 0:01:37]} 30. Rxd6 {[%emt 0:00:09]} Nxd6 {[%emt 0:00:04]} 31. Be2 {[%emt 0:00:23]} Nb5 {[%emt 0:00:12]} 32. Bf6 {[%emt 0:01:04]} Rc8 {[%emt 0:00:16]} 33. Bd1 {[%emt 0:00:46]} Rc6 {[%emt 0:00:49]} 34. Ba1 {[%emt 0:00:45]} c4 {[%emt 0:01:19]} 35. Bxa4 {[%emt 0:00:06]} c3 {[%emt 0:00:12]} 36. Ne2 {[%emt 0:00:10]} Rc7 {[%emt 0:01:26]} 37. Bxb5 {[%emt 0:00:07]} axb5 {[%emt 0:00:02]} 38. Nxc3 {[%emt 0:00:08]} Rd7 {[%emt 0:00:29]} 39. Nxb5 {[%emt 0:00:08]} h5 {[%emt 0:00:09]} 40. a4 {[%emt 0:00:05]} Rb7 {[%emt 0:01:04]} 41. Rc2 {[%emt 0:30:23]} Kf8 {[%emt 0:30:31]} 42. Bf6 {[%emt 0:00:12]} Rb8 {[%emt 0:00:38]} 43. a5 {[%emt 0:00:06]} Ke8 {[%emt 0:00:27]} 44. Rd2 {[%emt 0:00:13]} Kf8 {[%emt 0:00:43]} 45. a6 {[%emt 0:00:08]} Kg8 {[%emt 0:00:17]} 46. a7 {[%emt 0:00:03]} Ra8 {[%emt 0:00:12]} 47. Rd8+ {[%emt 0:00:07]} Rxd8 {[%emt 0:00:34]} 48. Bxd8 {[%emt 0:00:05]} f4 {[%emt 0:00:15]} 49. a8=Q {[%emt 0:00:07]} f3+ {[%emt 0:00:03]} 50. Kxf3 {[%emt 0:00:16]} Kg7 {[%emt 0:00:17]} 51. Qa1+ {[%emt 0:00:14]} Kg8 {[%emt 0:00:17]} 52. Bf6 {[%emt 0:00:04]} Kh7 {[%emt 0:00:25]} 53. Qa8 {[%emt 0:00:07]} g5 {[%emt 0:00:04]} 54. Qh8+ {[%emt 0:00:09]} Kg6 {[%emt 0:00:03]} 55. e4 {[%emt 0:00:11]} g4+ {[%emt 0:00:25]} 56. Kf4 {[%emt 0:00:03]} h4 {[%emt 0:00:12]} 57. Qg7+ {[%emt 0:00:04]} Kh5 {[%emt 0:00:05]} 58. Qg5# {[%emt 0:00:03]} 1-0

[Event "FIDE WY-U16 Olympiad 2022"]
[Site "Nakhchivan"]
[Date "2022.10.05"]
[Round "4.28"]
[White "Dasgupta, Avyukt"]
[Black "Nel, Hayley"]
[Result "1/2-1/2"]
[ECO "D00"]
[WhiteElo "1687"]
[BlackElo "1191"]
[Annotator "NA RC COMBH"]
[PlyCount "83"]
[EventDate "2022.10.02"]
[EventType "team-tourn"]
[EventCountry "AZE"]
[SourceTitle "playchess.com"]
[Source "ChessBase"]
[SourceQuality "1"]
[WhiteTeam "England"]
[BlackTeam "South Africa"]
[WhiteTeamCountry "ENG"]
[BlackTeamCountry "RSA"]
[TimeControl "40/5400+30:1800+30"]

1. d4 {[%emt 0:01:00]} d5 {[%emt 0:00:11]} 2. Bf4 {[%emt 0:00:04]} Nf6 {[%emt 0:00:11]} 3. e3 {[%emt 0:00:06]} c5 {[%emt 0:00:18]} 4. c3 {[%emt 0:00:03]} Nc6 {[%emt 0:00:30]} 5. Nd2 {[%emt 0:00:05]} e6 {[%emt 0:00:37]} 6. Ngf3 {[%emt 0:00:06]} cxd4 {[%emt 0:00:35]} 7. exd4 {[%emt 0:00:30]} Nh5 {[%emt 0:00:29]} 8. Bg3 {[%emt 0:00:40]} Nxg3 {[%emt 0:05:52]} 9. hxg3 g6 {[%emt 0:01:23]} 10. Bd3 {[%emt 0:00:22]} Bg7 {[%emt 0:01:00]} 11. Qe2 {[%emt 0:01:04]} O-O {[%emt 0:10:52]} 12. Ne5 {[%emt 0:06:23]} Qc7 {[%emt 0:05:04]} 13. f4 {[%emt 0:07:48]} f6 {[%emt 0:05:39]} 14. Nxc6 {[%emt 0:16:26]} Qxc6 {[%emt 0:01:55]} 15. O-O {[%emt 0:05:35]} Bd7 {[%emt 0:03:40]} 16. Rae1 {[%emt 0:07:05]} Qd6 {[%emt 0:03:45]} 17. Nf3 {[%emt 0:01:39]} a6 {[%emt 0:08:29]} 18. g4 {[%emt 0:12:36]} Rfe8 {[%emt 0:14:39]} 19. g5 {[%emt 0:02:34]} f5 {[%emt 0:04:21]} 20. g3 {[%emt 0:01:47]} b5 {[%emt 0:08:23]} 21. a3 {[%emt 0:00:31]} Rab8 {[%emt 0:01:06]} 22. b4 {[%emt 0:07:47]} Rec8 {[%emt 0:06:15]} 23. Rc1 {[%emt 0:00:57]} Rc6 {[%emt 0:01:37]} 24. Rc2 {[%emt 0:01:05]} Rbc8 {[%emt 0:01:01]} 25. Rfc1 {[%emt 0:00:15]} Qc7 {[%emt 0:01:33]} 26. Qd2 {[%emt 0:00:18]} Kf7 {[%emt 0:02:23]} 27. Kg2 {[%emt 0:00:12]} Be8 {[%emt 0:01:17]} 28. Ng1 {[%emt 0:03:23]} Kg8 {[%emt 0:00:58]} 29. Ne2 {[%emt 0:00:30]} Bf8 {[%emt 0:00:29]} 30. Ra1 {[%emt 0:03:32]} Rb6 {[%emt 0:01:11]} 31. Rac1 {[%emt 0:04:11]} Bc6 {[%emt 0:01:59]} 32. Qe3 {[%emt 0:01:01]} Re8 {[%emt 0:00:19]} 33. Kf2 {[%emt 0:02:32]} Qa7 {[%emt 0:01:02]} 34. Ng1 {[%emt 0:01:09]} Rb7 {[%emt 0:00:32]} 35. Nf3 {[%emt 0:00:38]} Bd6 {[%emt 0:00:46]} 36. Ne5 {[%emt 0:02:06]} Bxe5 {[%emt 0:00:55]} 37. Qxe5 {[%emt 0:00:07]} Qb8 {[%emt 0:04:56]} 38. Qe3 {[%emt 0:02:38]} Ra7 {[%emt 0:00:39]} 39. Rh1 {[%emt 0:00:46]} Qd6 {[%emt 0:00:38]} 40. Rhc1 {[%emt 0:03:49]} Rc8 {[%emt 0:00:39]} 41. Be2 {[%emt 0:31:44]} Re8 {[%emt 0:30:56]} 42. Ra2 {[%emt 0:01:20]} 1/2-1/2